Cogmind - Beta 15 @@@ ROGUE MODE // 2025.10.08 @ 16:30:44 Player: microsand Result: Destroyed by G-67 Veteran with Plasma Rifle Performance ------------- Evolutions (4) 2000 Regions Visited (11) 2200 Robots Destroyed (35) 175 Value Destroyed (829) 829 Prototype IDs (26) 520 Alien Tech Used (0) 0 Bonus (800) 800 TOTAL SCORE: 6524 Bonus ------- Entered DSFs 500 Aligned with FarCom 300 Cogmind --------- Core Integrity 0/850 Matter 279/300 Energy 87/100 System Corruption 0% Temperature Cool (21) Movement Core (50) Location -6/DSF Parts ------- > --- POWER (3) -------- (None) > --- PROPULSION (3) --- (None) > --- UTILITY (7) ------ (None) > --- WEAPON (2) ------- (None) > --- INVENTORY (5) ---- Makeshift Laser High-powered Shotgun Flak Gun Flak Cannon Peak State ------------ > --- POWER ------------ Light Deuterium Engine Light Fission Core Neutrino Core > --- PROPULSION ------- Armored Leg Potential Leg Potential Leg > --- UTILITY ---------- Advanced Heat Sink Cloak of Protection Improved Weapon Shielding Force Field Dynamic Insulation System High-powered Tractor Beam Trap Reconfigurator > --- WEAPON ----------- Makeshift Laser Flak Gun > --- INVENTORY -------- Light Fission Core Particle Gun High-powered Shotgun Flak Cannon [Rating: 85] Favorites ----------- Power Light Nuclear Core Engine Deuterium Engine Power Core Light Nuclear Core Propulsion Potential Leg Leg Potential Leg Flight Unit Flight Unit Utility Trap Reconfigurator Device Trap Reconfigurator Storage Small Storage Unit Hackware System Shield Protection Improved Weapon Shielding Weapon Particle Gun Energy Gun Particle Gun Ballistic Gun High-powered Shotgun Ballistic Cannon Flak Cannon Special Weapon Mining Laser Build | -11 -10 -9 -9 -9 -8 -8 -7 -7 -7 -6 -6 ------- Run | Yrd Mat Mat Min Exi Min Mat Fac Low Low Fac DSF Slots Evolved 8 | . . 2 . . . 2 2 . . 2 . Power 2 | . . . . . . 1 . . . 1 . Propulsion 1 | . . 1 . . . . . . . . . Utility 5 | . . 1 . . . 1 2 . . 1 . Weapon . | . . . . . . . . . . . . Parts Attached 46 | 5 3 6 1 6 . 8 2 4 4 3 4 Power 10 | 1 . 2 . 1 . 2 . 1 1 . 2 Engine 5 | 1 . 2 . . . 1 . . 1 . . Core 5 | . . . . 1 . 1 . 1 . . 2 Reactor . | . . . . . . . . . . . . Propulsion 12 | 2 . 4 1 2 . . 1 . 1 1 . Treads . | . . . . . . . . . . . . Leg 7 | 2 . 1 1 2 . . . . . 1 . Wheel . | . . . . . . . . . . . . Hover . | . . . . . . . . . . . . Flight 5 | . . 3 . . . . 1 . 1 . . Utility 11 | . 1 . . 2 . 3 . 2 1 2 . Device 8 | . . . . 2 . 3 . 1 . 2 . Storage 1 | . 1 . . . . . . . . . . Processor . | . . . . . . . . . . . . Hackware 1 | . . . . . . . . . 1 . . Protection 1 | . . . . . . . . 1 . . . Artifact . | . . . . . . . . . . . . Weapon 13 | 2 2 . . 1 . 3 1 1 1 . 2 Energy Gun 4 | 1 2 . . . . . . 1 . . . Energy Cannon . | . . . . . . . . . . . . Ballistic Gun 5 | 1 . . . . . 2 1 . 1 . . Ballistic Cannon 3 | . . . . . . 1 . . . . 2 Launcher . | . . . . . . . . . . . . Special Weapon 1 | . . . . 1 . . . . . . . Impact Weapon . | . . . . . . . . . . . . Slashing Weapon . | . . . . . . . . . . . . Piercing Weapon . | . . . . . . . . . . . . Special Melee Weapon . | . . . . . . . . . . . . Unidentified Prototypes 1 | . . . . . . . 1 . . . . Parts Lost 19 | . 2 5 1 . . 1 1 . . . 9 Power 3 | . . 2 . . . . . . . . 1 Propulsion 4 | . 1 3 . . . . . . . . . Utility 7 | . . . . . . . 1 . . . 6 Weapon 5 | . 1 . 1 . . 1 . . . . 2 Highest Loss Streak 9 | . 2 3 4 . . 1 1 . . . 9 To Critical Strikes . | . . . . . . . . . . . . Average Backups 3 | . 1 4 4 4 3 3 4 4 4 4 3 Power 1 | . . 1 1 1 1 . 1 1 1 1 . Propulsion . | . . . . . 1 . . 1 . . . Utility . | . . 1 1 1 1 . . . . . . Weapon 1 | . . 1 2 1 . 1 2 2 2 3 3 Tool/Special . | . . . . . . . . . . . . Unused Backups 5 | . . 2 . . . 2 1 . . . . Power 4 | . . 2 . . . 1 1 . . . . Propulsion . | . . . . . . . . . . . . Utility . | . . . . . . . . . . . . Weapon 1 | . . . . . . 1 . . . . . Tool/Special . | . . . . . . . . . . . . Average Slot Usage (%) 66 | . 80 58 33 40 77 80 66 67 71 89 82 Engine 5 | . 14 7 . . . 9 6 7 8 6 4 Core 5 | . . . . 1 11 8 6 7 5 13 10 Leg 17 | . 24 7 14 22 22 18 15 15 9 13 15 Flight 1 | . . 16 4 . . . . . . . . Device 16 | . . . . 3 22 27 26 25 20 30 33 Storage 1 | . 14 4 . . . . . . . . . Protection 1 | . . . . . . . . 2 3 6 5 Energy Gun 8 | . 14 22 14 11 11 2 . 2 7 6 4 Ballistic Gun 3 | . 12 . . . . 7 1 . 2 6 4 Ballistic Cannon 2 | . . . . . . 3 7 7 4 . . Special Weapon 1 | . . . . 2 11 4 . . . . . Peak Build Rating 85 | 5 7 10 5 43 43 56 60 64 68 83 85 Average Rating 34 | 3 5 7 3 10 43 47 49 54 49 74 68 On Entrance 35 | . 5 7 5 4 43 43 56 50 64 68 83 Naked Turns 6 | . . . . . . . . . . . 6 Heaviest Build 52 | 7 16 16 6 18 18 34 34 45 45 52 52 Greatest Support 76 | 20 20 20 20 70 60 60 60 60 60 76 76 Greatest Overweight (x) 10 | . 1 1 1 . . . . . 10 . 3 Average Overweight (x) . | . . . . . . . . . . . . Largest Inventory Capacity 8 | 5 8 8 5 5 5 5 5 5 5 5 5 Average Capacity 5 | 5 8 6 5 5 5 5 5 5 5 5 5 Most Carried 7 | 2 5 7 5 5 3 5 5 5 5 5 5 Average Carried 3 | . 1 4 4 4 3 3 4 4 4 4 3 Final Capacity 8 | 5 8 5 5 5 5 5 5 5 5 5 5 Final Carried 5 | 1 5 5 5 3 3 5 4 5 5 4 4 Class Distribution -------------------- 79% | Mutant 12% | Derelict-Mutant 7% | Scavenger-Mutant Dominant Class ---------------- Mutant | -10/Materials Scavenger-Mutant | -9/Materials Mutant | -9/Mines Mutant | -9/Exiles Mutant | -8/Mines Mutant | -8/Materials Mutant | -7/Factory Mutant | -7/Lower Caves Derelict-Mutant | -7/Lower Caves Derelict-Mutant | -6/Factory Derelict-Mutant | -6/DSF Resources | -11 -10 -9 -9 -9 -8 -8 -7 -7 -7 -6 -6 ----------- Run | Yrd Mat Mat Min Exi Min Mat Fac Low Low Fac DSF Matter Collected 1163 | 140 190 40 20 . 13 232 5 257 40 . 226 Remotely 569 | . . . . . . 41 5 257 40 . 226 Salvage Created 907 | . 259 168 . . 13 274 . 101 . . 92 Parts 81 | . 19 19 . . 3 26 . 3 . . 11 Haulers Intercepted 1 | . . . . . . 1 . . . . . Recyclers Shooed . | . . . . . . . . . . . . Parts Field Recycled . | . . . . . . . . . . . . Retrieved Matter . | . . . . . . . . . . . . Parts Self-Destructed 2 | . . . . . . . . 2 . . . Prevented . | . . . . . . . . . . . . Kills | -11 -10 -9 -9 -9 -8 -8 -7 -7 -7 -6 -6 ------- Run | Yrd Mat Mat Min Exi Min Mat Fac Low Low Fac DSF Combat Hostiles Destroyed 29 | . 6 6 . . . 11 . 2 . . 4 Guns 22 | . 6 6 . . . 9 . . . . 1 Cannons 7 | . . . . . . 2 . 2 . . 3 Classes Destroyed 9 | . 2 3 . . . 2 . 1 . . 1 Worker 2 | . 1 . . . 1 . . . . . . Builder 1 | . . . . . . 1 . . . . . Hauler 1 | . . . . . . 1 . . . . . Watcher 2 | . . 1 . . . 1 . . . . . Swarmer 13 | . . 4 . . . 7 . 2 . . . Cutter 3 | . . . . . . . . . . . 3 Grunt 9 | . 6 . . . . 2 . . . . 1 Sentry 4 | . . 2 . . . 2 . . . . . Packrat 1 | . . . . . . . . 1 . . . Best Kill Streak 5 | . 5 5 . . 1 4 . 2 . . 3 Combat Bots Only 4 | . 4 4 . . . 4 . 2 . . 3 Max Kills in Single Turn 2 | . 1 1 . . 1 2 . 1 . . 2 Gunslinging . | . . . . . . . . . . . . Exploded . | . . . . . . . . . . . . Melee . | . . . . . . . . . . . . Uniques/NPCs Destroyed . | . . . . . . . . . . . . Combat | -11 -10 -9 -9 -9 -8 -8 -7 -7 -7 -6 -6 -------- Run | Yrd Mat Mat Min Exi Min Mat Fac Low Low Fac DSF Hostile Shots Fired 302 | . 42 37 12 . 6 59 1 24 . . 121 Missed 78 | . 4 12 4 . 3 18 . 10 . . 27 Hits 224 | . 38 25 8 . 3 41 1 14 . . 94 Melee 32 | . . . . . . . . . . . 32 Projectile 192 | . 38 25 8 . 3 41 1 14 . . 62 AOE 1 | . . . . . . . . . . . 1 Critical Strikes 15 | . . 1 . . . 1 1 . . . 12 Actively Blocked 1 | . . . . . . . . . . . 1 Damage Taken 3409 | . 496 294 103 . 36 392 52 173 . . 1863 Core 1191 | . 79 93 67 . 10 30 52 . . . 860 Absorbed by Shields 93 | . . . . . . . . . . . 93 Redirected to Shielding 70 | . . . . . . . . 19 . . 51 Core Remaining (%) 82 | 100 68 . . . 57 94 . . 92 . . Volleys Fired 102 | . 35 12 . . . 43 . 5 . . 7 Largest 2 | . 2 2 . . . 2 . 2 . . 2 Hottest 165 | . 85 130 . . . 165 . 87 . . 102 Shots Fired 174 | . 64 24 . . . 66 . 10 . . 10 Gun 147 | . 64 24 . . . 49 . 5 . . 5 Cannon 25 | . . . . . . 15 . 5 . . 5 Launcher . | . . . . . . . . . . . . Special 2 | . . . . . . 2 . . . . . Kinetic 108 | . 35 . . . . 60 . 5 . . 8 Thermal 66 | . 29 24 . . . 6 . 5 . . 2 Explosive . | . . . . . . . . . . . . Electromagnetic . | . . . . . . . . . . . . Robot Hit Streak 11 | . 9 4 . . . 11 . 5 . . 2 Robot Miss Streak 10 | . 2 3 . . . 10 . 3 . . 6 Penetration Max 1 | . . . . . . . . . . . 1 Secondary Targets 2 | . . 2 . . . . . . . . . Max Gunslinging Chain 1 | . . 1 . . . . . . . . . Shots Hit Robots 110 | . 42 14 . . . 39 . 9 . . 6 Core Hits 66 | . 16 9 . . 1 27 . 7 . . 6 Critical Kills 2 | . . . . . . . . . . . 2 Critical Parts Destroyed 3 | . . . . . . . . . . . 3 Critical Strikes 7 | . 1 1 . . . . . . . . 5 Burn 2 | . 1 1 . . . . . . . . . Destroy 5 | . . . . . . . . . . . 5 Melee Attacks . | . . . . . . . . . . . . Impact . | . . . . . . . . . . . . Slashing . | . . . . . . . . . . . . Piercing . | . . . . . . . . . . . . Sneak Attacks . | . . . . . . . . . . . . Combat Hostiles . | . . . . . . . . . . . . Follow-up Attacks . | . . . . . . . . . . . . Damage Inflicted 1781 | . 436 216 . . 28 828 17 136 . . 120 Guns 1264 | . 427 216 . . . 524 . 82 . . 15 Cannons 342 | . . . . . . 183 . 54 . . 105 Explosions . | . . . . . . . . . . . . Melee . | . . . . . . . . . . . . Ramming 151 | . 9 . . . 28 97 17 . . . . Kinetic 1093 | . 230 . . . . 689 . 54 . . 120 Thermal 537 | . 197 216 . . . 42 . 82 . . . Explosive . | . . . . . . . . . . . . Electromagnetic . | . . . . . . . . . . . . Impact . | . . . . . . . . . . . . Slashing . | . . . . . . . . . . . . Piercing . | . . . . . . . . . . . . Highest Corruption 2 | . 2 . . . . . . . . . . Average Corruption 2 | . 2 . . . . . . . . . . Corruption Purged . | . . . . . . . . . . . . Corruption Blocked . | . . . . . . . . . . . . Effects 3 | . 3 . . . . . . . . . . Matter Fused 1 | . 1 . . . . . . . . . . Data Loss (minor) 1 | . 1 . . . . . . . . . . Misfires 1 | . 1 . . . . . . . . . . Overload Shots . | . . . . . . . . . . . . Overflow Damage 18 | . . . . . . 15 . 3 . . . Projectiles 3 | . . . . . . . . 3 . . . Explosions . | . . . . . . . . . . . . Melee 15 | . . . . . . 15 . . . . . Knockbacks 11 | . . . . . . 5 . 4 . . 2 Impact . | . . . . . . . . . . . . Kinetic 11 | . . . . . . 5 . 4 . . 2 Secondary . | . . . . . . . . . . . . Self-Inflicted Damage . | . . . . . . . . . . . . Shots . | . . . . . . . . . . . . Rammed . | . . . . . . . . . . . . Targets Rammed 11 | . 1 . . . 2 5 3 . . . . Kicked 11 | . 1 . . . 2 5 3 . . . . Crushed . | . . . . . . . . . . . . Highest Temperature 390 | . 230 390 . . . 38 . 99 . . . Average Temperature 101 | . 98 156 . . . 13 . 41 . . . Received Heat Transfer 1009 | . 285 108 60 . 9 117 . 12 . . 418 Effects 1 | . . 1 . . . . . . . . . Shutdowns 1 | . . 1 . . . . . . . . . Siege Activations . | . . . . . . . . . . . . Martial Activations . | . . . . . . . . . . . . Shielding Activations . | . . . . . . . . . . . . Robots Disrupted . | . . . . . . . . . . . . Combat Hostiles . | . . . . . . . . . . . . Robots Corrupted 1 | . . . . . . 1 . . . . . Combat Hostiles . | . . . . . . . . . . . . Parts Fried 1 | . . . . . . 1 . . . . . Impact Corruptions 1 | . . . . . . 1 . . . . . Robots Melted . | . . . . . . . . . . . . Combat Hostiles . | . . . . . . . . . . . . Parts Melted . | . . . . . . . . . . . . Heat Transferred 1374 | . 510 592 . . . 87 . 185 . . . Parts Sabotaged . | . . . . . . . . . . . . Parts Stolen . | . . . . . . . . . . . . Parts Stripped . | . . . . . . . . . . . . Power Chain Reactions . | . . . . . . . . . . . . Alert | -11 -10 -9 -9 -9 -8 -8 -7 -7 -7 -6 -6 ------- Run | Yrd Mat Mat Min Exi Min Mat Fac Low Low Fac DSF Maximum Alert Level . | . . . . . . . . . . . . Low Security (%) 100 | 100 100 100 100 . 100 100 100 . . 100 100 Level 1 . | . . . . . . . . . . . . Level 2 . | . . . . . . . . . . . . Level 3 . | . . . . . . . . . . . . Level 4 . | . . . . . . . . . . . . Level 5 . | . . . . . . . . . . . . High Security . | . . . . . . . . . . . . Max Security . | . . . . . . . . . . . . Peak Influence 174 | . 76 124 36 . 80 174 71 . . 5 70 Initial 71 | . . 17 36 . . 23 71 . . 2 3 Average 36 | . 23 75 17 . 28 58 43 . . . 15 Influence Increases 974 | . 185 197 . . 110 307 . 80 . 5 90 Destroy 0b10 Robot/C 580 | . 120 120 . . . 220 . 40 . . 80 Destroy 0b10 Robot/NC 30 | . 5 5 . . 5 15 . . . . . Destroy Leader 126 | . 30 32 . . . 44 . 10 . . 10 Successful Hack 38 | . 13 9 . . . 11 . . . 5 . Disable Machine 15 | . . 15 . . . . . . . . . Destroy Structure 5 | . 2 1 . . . 2 . . . . . Lose Combat Pursuer 180 | . 15 15 . . 105 15 . 30 . . . Influence Decreases 934 | . 143 145 88 6 50 209 157 1 76 4 55 Entered New Map 234 | . . 25 58 6 . 37 87 1 16 2 2 Time Decay 547 | . 123 70 20 . 50 162 60 . 60 2 . Lost Part 153 | . 20 50 10 . . 10 10 . . . 53 Squads Dispatched 4 | . 1 1 . . . . . . . . 2 Investigation . | . . . . . . . . . . . . Extermination . | . . . . . . . . . . . . Reinforcement 4 | . 1 1 . . . . . . . . 2 Assault . | . . . . . . . . . . . . Garrison . | . . . . . . . . . . . . Intercept . | . . . . . . . . . . . . Searches Triggered . | . . . . . . . . . . . . Construction Impeded . | . . . . . . . . . . . . Haulers Reinforced . | . . . . . . . . . . . . Active Scanning Responses . | . . . . . . . . . . . . Cargo Convoy Interrupts . | . . . . . . . . . . . . Stealth | -11 -10 -9 -9 -9 -8 -8 -7 -7 -7 -6 -6 --------- Run | Yrd Mat Mat Min Exi Min Mat Fac Low Low Fac DSF Distress Signals 4 | . . 1 . . . 3 . . . . . Communications Jammed . | . . . . . . . . . . . . Distress Signals . | . . . . . . . . . . . . Times Spotted 70 | . 10 12 3 . 9 18 1 5 . . 12 Peak Tracking Total 9 | . 5 5 3 . 4 5 . 5 . . 9 Tactical Retreats 6 | . 1 1 . . 2 1 . 1 . . . Traps | -11 -10 -9 -9 -9 -8 -8 -7 -7 -7 -6 -6 ------- Run | Yrd Mat Mat Min Exi Min Mat Fac Low Low Fac DSF Traps Triggered 3 | . 1 . . . . 1 . . . . 1 Indirectly . | . . . . . . . . . . . . Trap Hack Attempts . | . . . . . . . . . . . . Triggered . | . . . . . . . . . . . . Disarmed . | . . . . . . . . . . . . Reprogrammed . | . . . . . . . . . . . . Reused . | . . . . . . . . . . . . Traps Reconfigurated 3 | . . . . . . 1 1 . . . 1 Traps Extracted . | . . . . . . . . . . . . Installed . | . . . . . . . . . . . . Triggered . | . . . . . . . . . . . . Machines | -11 -10 -9 -9 -9 -8 -8 -7 -7 -7 -6 -6 ---------- Run | Yrd Mat Mat Min Exi Min Mat Fac Low Low Fac DSF Machines Disabled 1 | . . 1 . . . . . . . . . Max in Single Turn 1 | . . 1 . . . . . . . . . Machines Repaired . | . . . . . . . . . . . . Machines Dismantled . | . . . . . . . . . . . . Machines Sabotaged . | . . . . . . . . . . . . Overloaded Fab Kills . | . . . . . . . . . . . . Hacking | -11 -10 -9 -9 -9 -8 -8 -7 -7 -7 -6 -6 --------- Run | Yrd Mat Mat Min Exi Min Mat Fac Low Low Fac DSF Machines Accessed 11 | . 4 1 . 1 . 3 . . . 2 . Terminals 9 | . 3 1 . . . 3 . . . 2 . Fabricators . | . . . . . . . . . . . . Repair Stations . | . . . . . . . . . . . . Recycling Units 1 | . 1 . . . . . . . . . . Scanalyzers . | . . . . . . . . . . . . Garrison Access . | . . . . . . . . . . . . Total Hacks 17 | . 5 3 . 1 . 6 . . . 2 . Successful 11 | . 4 2 . 1 . 3 . . . 1 . Failed 6 | . 1 1 . . . 3 . . . 1 . Catastrophic . | . . . . . . . . . . . . Database Lockouts . | . . . . . . . . . . . . Manual 18 | . 5 2 . 3 . 6 . . . 2 . Terminals 15 | . 4 3 . . . 6 . . . 2 . Fabricators . | . . . . . . . . . . . . Repair Stations . | . . . . . . . . . . . . Recycling Units 1 | . 1 . . . . . . . . . . Scanalyzers . | . . . . . . . . . . . . Garrison Access . | . . . . . . . . . . . . Terminal Hacks 7 | . 2 1 . 1 . 2 . . . 1 . Prototype ID Bank 1 | . . . . . . 1 . . . . . Open DSF 1 | . . . . . . . . . . 1 . Branch Access Points 2 | . 1 . . . . 1 . . . . . Terminal Index 1 | . 1 . . . . . . . . . . Dispatch Records 1 | . . 1 . . . . . . . . . Proto ID Catalog 1 | . . . . 1 . . . . . . . Fabricator Hacks . | . . . . . . . . . . . . Repair Station Hacks . | . . . . . . . . . . . . Recycling Unit Hacks 1 | . 1 . . . . . . . . . . Report Inventory 1 | . 1 . . . . . . . . . . Scanalyzer . | . . . . . . . . . . . . Garrison Access Hacks . | . . . . . . . . . . . . Unauthorized Hacks 3 | . 1 1 . . . 1 . . . . . Terminals 3 | . 1 1 . . . 1 . . . . . Botnet 3 | . 1 1 . . . 1 . . . . . Fabricators . | . . . . . . . . . . . . Repair Stations . | . . . . . . . . . . . . Recycling Units . | . . . . . . . . . . . . Scanalyzers . | . . . . . . . . . . . . Garrison Access . | . . . . . . . . . . . . Data Cores Recovered . | . . . . . . . . . . . . Used . | . . . . . . . . . . . . Hacking Detections 6 | . 3 1 . . . 1 . . . 1 . Full Trace Events . | . . . . . . . . . . . . Feedback Events . | . . . . . . . . . . . . Feedback Blocked . | . . . . . . . . . . . . Robot Schematics Acquired . | . . . . . . . . . . . . Robots Built . | . . . . . . . . . . . . Authchips . | . . . . . . . . . . . . Time . | . . . . . . . . . . . . Total Robot Build Rating . | . . . . . . . . . . . . Part Schematics Acquired . | . . . . . . . . . . . . Parts Built . | . . . . . . . . . . . . Authchips . | . . . . . . . . . . . . Time . | . . . . . . . . . . . . Total Part Build Rating . | . . . . . . . . . . . . Parts Repaired . | . . . . . . . . . . . . Time . | . . . . . . . . . . . . Parts Recycled . | . . . . . . . . . . . . Recycled Matter . | . . . . . . . . . . . . Retrieved Matter . | . . . . . . . . . . . . Retrieved Components . | . . . . . . . . . . . . Parts Scanalyzed . | . . . . . . . . . . . . Part Schematics Acquired . | . . . . . . . . . . . . Parts Damaged . | . . . . . . . . . . . . Bothacking | -11 -10 -9 -9 -9 -8 -8 -7 -7 -7 -6 -6 ------------ Run | Yrd Mat Mat Min Exi Min Mat Fac Low Low Fac DSF Used RIF Installer . | . . . . . . . . . . . . Robots Hacked . | . . . . . . . . . . . . Non-combat . | . . . . . . . . . . . . Combat . | . . . . . . . . . . . . Robot Hacks Applied . | . . . . . . . . . . . . Relay Couplers Released . | . . . . . . . . . . . . Fabnet Peak Effective % . | . . . . . . . . . . . . Robots Rewired . | . . . . . . . . . . . . Allies Hacked . | . . . . . . . . . . . . Hacks Repelled . | . . . . . . . . . . . . Allies | -11 -10 -9 -9 -9 -8 -8 -7 -7 -7 -6 -6 -------- Run | Yrd Mat Mat Min Exi Min Mat Fac Low Low Fac DSF Total Allies . | . . . . . . . . . . . . Largest Group . | . . . . . . . . . . . . Highest-Rated Group . | . . . . . . . . . . . . Highest-Rated Ally . | . . . . . . . . . . . . Total Orders . | . . . . . . . . . . . . Ally Attacks . | . . . . . . . . . . . . Total Damage . | . . . . . . . . . . . . Kills . | . . . . . . . . . . . . Allies Corrupted . | . . . . . . . . . . . . Allies Melted . | . . . . . . . . . . . . Intel | -11 -10 -9 -9 -9 -8 -8 -7 -7 -7 -6 -6 ------- Run | Yrd Mat Mat Min Exi Min Mat Fac Low Low Fac DSF Active Infowar (turns) 1378 | . . . . 5 13 425 104 475 71 158 127 Cloaking 1378 | . . . . 5 13 425 104 475 71 158 127 Robot Analysis Total . | . . . . . . . . . . . . Derelict Logs Recovered 1 | . . . . . . . . 1 . . . Drone Launches . | . . . . . . . . . . . . Drone Recoveries . | . . . . . . . . . . . . Exploration | -11 -10 -9 -9 -9 -8 -8 -7 -7 -7 -6 -6 ------------- Run | Yrd Mat Mat Min Exi Min Mat Fac Low Low Fac DSF Turns Passed 3055 | 72 345 156 56 686 186 504 126 475 135 158 156 Spaces Moved 2825 | 57 168 184 36 571 319 367 123 604 86 179 131 Core 20 | 11 . . . . . . . . 8 . 1 Treads . | . . . . . . . . . . . . Legs 2632 | 46 168 23 31 571 319 367 123 604 71 179 130 Wheels . | . . . . . . . . . . . . Hover . | . . . . . . . . . . . . Flight 173 | . . 161 5 . . . . . 7 . . Fastest Speed 34 | 50 120 34 40 45 45 45 45 45 44 45 45 Average Speed 81 | 106 132 52 111 112 56 45 82 74 114 83 68 Slowest Speed 550 | 120 190 190 120 120 90 45 90 90 550 90 200 Overloaded Moves 1032 | . . . . 24 237 367 20 212 9 33 130 Propulsion Burnouts . | . . . . . . . . . . . . Robots Hopped 4 | . . 4 . . . . . . . . . Potential Cave-ins . | . . . . . . . . . . . . Cave-ins Triggered . | . . . . . . . . . . . . Exploration Rate (%) 34 | 4 35 28 12 89 62 30 3 70 9 6 63 Regions Visited 11 Branch Regions 5 Pre-discovered Areas . | . . . . . . . . . . . . Known Exits Taken 1 | . . . . . . . . . . 1 . Unknown Exits Taken 10 | 1 1 1 1 1 1 1 1 1 1 . . Scrap Searched 4 | . . . . . 1 . . 2 1 . . Spaces Dug 1 | . . . . . . 1 . . . . . Terrain Destroyed 1 | . . . . . . 1 . . . . . Melee . | . . . . . . . . . . . . Projectile 1 | . . . . . . 1 . . . . . AOE . | . . . . . . . . . . . . Terrain Rammed . | . . . . . . . . . . . . Walls Destroyed . | . . . . . . . . . . . . Machines Disabled . | . . . . . . . . . . . . Actions | -11 -10 -9 -9 -9 -8 -8 -7 -7 -7 -6 -6 --------- Run | Yrd Mat Mat Min Exi Min Mat Fac Low Low Fac DSF Total 3426 | 68 233 217 52 616 323 639 153 619 127 186 193 Wait 316 | 1 17 11 12 34 3 194 . 3 3 . 38 Move 2807 | 56 167 176 35 570 318 366 122 603 85 178 131 Hop 3 | . . 3 . . . . . . . . . Pick Up 74 | 6 7 6 2 4 . 14 9 4 13 3 6 Fast Attach . | . . . . . . . . . . . . Attach 56 | 5 3 4 2 5 . 6 8 3 11 4 5 Detach 1 | . . . . . . . . . . . 1 Swap 14 | . 2 2 . 1 . 5 . 1 3 . . Drop 42 | . 1 3 1 2 . 6 11 . 12 1 5 Fire 102 | . 35 12 . . . 43 . 5 . . 7 Melee . | . . . . . . . . . . . . Ram . | . . . . . . . . . . . . Kick 11 | . 1 . . . 2 5 3 . . . . Crush . | . . . . . . . . . . . . Escape Stasis . | . . . . . . . . . . . . Rewire . | . . . . . . . . . . . . Trap . | . . . . . . . . . . . . Miscellaneous . | . . . . . . . . . . . . Route ------- -11/Scrapyard -10/Materials (discovered 2 exits: *Mat / Min) -9/Materials (discovered 2 exits: [*Min x2]) -9/Mines -9/Exiles -8/Mines -8/Materials -7/Factory (discovered 2 exits: *Fac / [*Low]) -7/Lower Caves -7/Lower Caves -6/Factory -6/DSF History --------- Turn | Location | Event 3 | -11/Scrapyard | Discovered new exit (range 16) 73 | -11/Scrapyard | Entered Materials 131 | -10/Materials | Identified exit to Mines 278 | -10/Materials | Discovered new exit (range 14) 306 | -10/Materials | Build established: Mutant 418 | -10/Materials | Entered another Materials area 418 | -9/Materials | Evolved 2 slots: Propulsion x1, Utility x1 562 | -9/Materials | Discovered new exit (range 9) 567 | -9/Materials | Discovered new exit (range 14) 568 | -9/Materials | Met 8R-AWN 574 | -9/Materials | Entered Mines 575 | -9/Mines | Followed 8R-AWN into the Mines 611 | -9/Mines | Lost 4 parts (1p2n1w) 624 | -9/Mines | Discovered new exit (range 5) 630 | -9/Mines | Entered Exiles 663 | -9/Exiles | Welcomed by 8R-AWN 687 | -9/Exiles | Met EX-HEX 732 | -9/Exiles | Met EX-DEC 780 | -9/Exiles | Visited The Gauntlet 976 | -9/Exiles | Discovered new exit (range 14) 1098 | -9/Exiles | Met EX-BIN 1122 | -9/Exiles | Aligned with FarCom system 1123 | -9/Exiles | Given EX-Vault access code 1163 | -9/Exiles | Opened EX-Vault 1181 | -9/Exiles | Found Potential Leg 1183 | -9/Exiles | Found Potential Leg 1192 | -9/Exiles | Found Cloak of Protection 1216 | -9/Exiles | Found Trap Reconfigurator 1230 | -9/Exiles | Warned to stay clear of 0b10 Research branches 1316 | -9/Exiles | Stole three prototypes: Cloak of Protection, Potential Leg, Trap Reconfigurator 1316 | -9/Exiles | Entered Mines 1499 | -8/Mines | Discovered new exit (range 5) 1502 | -8/Mines | Entered Materials 1502 | -8/Materials | Evolved 2 slots: Power x1, Utility x1 1938 | -8/Materials | Discovered new exit (range 12) 2006 | -8/Materials | Entered Factory 2006 | -7/Factory | Evolved 2 slots: Utility x2 2008 | -7/Factory | FarCom data flow suspended 2117 | -7/Factory | Discovered new exit (range 16) 2128 | -7/Factory | Discovered new exit (range 16) 2132 | -7/Factory | Entered Lower Caves 2483 | -7/Lower Caves | Learned Factory terminal intel 2501 | -7/Lower Caves | Spotted B-75 Beast 2601 | -7/Lower Caves | Discovered new exit (range 11) 2607 | -7/Lower Caves | Entered another Lower Caves area 2721 | -7/Lower Caves | Discovered new exit (range 8) 2742 | -7/Lower Caves | Entered Factory 2742 | -6/Factory | Evolved 2 slots: Power x1, Utility x1 2743 | -6/Factory | Loaded intel: 26 terminal locations 2898 | -6/Factory | Identified exit to DSF 2900 | -6/Factory | Entered DSF 2918 | -6/DSF | Additional patrols routed to DSF 2955 | -6/DSF | Build established: Derelict-Mutant 3045 | -6/DSF | Core integrity fell below 50% 3054 | -6/DSF | Core integrity fell below 20% 3056 | -6/DSF | Destroyed by G-67 Veteran with Plasma Rifle Last Messages --------------- 03036_ C-17 Slicer destroyed. 03037_ Acquired 17 matter. 03037_ Acquired 3 matter. 03038_ Penetrated by Slug. 03038_ Hyp. Gauss Cannon destroyed. 03038_ Hpw. Tractor Beam destroyed. 03038_ Acquired Hyp. Gauss Cannon. 03041_ Penetrated by Slug. 03041_ HV Slug penetrates Wall. 03041_ A-15 Conveyor suffers critical hit (Destroy). 03041_ Destroyed Med. Treads. 03041_ Potential Leg severed. 03043_ X-62 Marksman suffers critical hit (Destroy). 03043_ Destroyed Gauss Rifle. 03043_ X-62 Marksman knocked back. 03049_ Hyp. Gauss Cannon destroyed. 03050_ Trap Reconfigurator severed. 03054_ Critical hit (Burn: +37). Map ----- +----------------------------------------------------+ | ???????????????????#########???????##"####??????? | | ???????????????#???# !!#########"""""#??????? | | ????????????# # # !!# #==##"""""#??????? | | ????????? ""##"#???? | | ????????? """""#???? | | ????????????#!!# ### ###===#==## ""###????? | | ?????????????????????# #?#===#==### ###??????? | | ????????????????????]] ?########## ##???????? | | ???????????????????#]] ????????#== =#???????? | | ???????????????????#]] ????????#== =#???????? | | ???????????????????### #????????### ##???????? | | ????????????????????|| !????????#== =#???????? | | ????????????????????|| !????????#== =#???????? | | ????????????????????|| !????????#== =#???????? | | ???????????????###?### #?????###### ###??????? | | ???????????????#!!!?## #?# ??#!!!?# ***#??????? | | ???????????????#!!!##A A## #! ## **#??????? | | ????????????????? ! * #??????? | | ?????????????????? #??????? | | ??????????????????? A ] *H #??????? | | ????????????????????# A##!!!#** ## !!#??????? | | ?????????????????????#= ;##!??#***?#*/!!#??????? | | ???????????????????### !;##???######! ###??????? | | ???????????????????#!! ]g#??????#== ==#???????? | | ???????????????????#!! gcg####???#== =#???????? | | ???????????????????#!! =x@]=% #???#== =#???????? | | ???????????????????### =!##% ##???### ##???????? | | ???????????????????# //###????# #???????? | | ???????????????????# *//#??????# #???????? | | ???????????????????# //########## ##???????? | | ???????????????????### ###===# ### ###??????? | | ????????????#//#///### *###===# ## ""##?????? | | ?????????? = = """""????? | | ?????????? == ""##"????? | | ??????????"##//#///#!! # =#==##"""""#??????? | | ???????????????###?#!! #########"""""#??????? | | ???????????????????#########???????##"####??????? | | ????????????????????????????????????#"#?????????? | | ?????????????????????????????????????""?????????? | | ????????????????????????????????????????????????? | | ????????????????????????????????????????????????? | | ????????????????????????????????????????????????? | | ????????????????????????????????????????????????? | | ????????????????????????????????????????????????? | | | | | | | | | | | | | +----------------------------------------------------+ Best States ------------- Heat Dissipation 56 Energy Generation 40 Energy Capacity 490 Matter Stores 300 Matter Capacity 300 Sight Range 16 Terrain Scan Density 10 Cloak Strength 5 EM Shielding 2 Weapon Shielding 66 Evasion (%) 66 Defensive Hacking 10 Item Schematics ----------------- None Robot Schematics ------------------ None Fabricated ------------ Nothing Repaired ---------- Nothing Alien Tech Used ----------------- None Achievements -------------- Leap Before You Look Please Form A Line Tourist Challenges ------------ None Game ------ Seed RelayAssemblyBrace Manual? 0 Play Time 00:32:39 Cumulative 8.0 hours Start 2025.10.08 @ 16:00:20 End 2025.10.08 @ 16:30:44 Sessions 1 Manual Loads 0 Difficulty Rogue Special Mode None Game No. 26 Rogue 26 Adventurer 0 Explorer 0 Win Type - Total 0 Types 0/0/0/0/0/0/0/0/0/0 Lore% 11 Gallery% 15 Achievement% 14 Wizard Run 0 Options --------- Layout 1 ASCII 0 Keyboard 0 Movement Numpad Keybinds 0 Fullscreen 1 Font 24/Smallcaps Map View 50x35 Zoom Use 0% Tactical HUD 1 Map Filters NONE Filters NONE Steam X RUN: 62517419-d223-4771-9eb3-a0e172fcdf43